bitfinex-derivatives/quotes_ETHF0:USTF0_20250107
["timestamp","ask_amount","ask_price","bid_price","bid_amount"]
[1736235594188,1.69085507,3668.2,3668.1,4.00923077]
[1736235596989,1.69085507,3668.2,3668.1,4.28181077]
[1736235598687,1.41828507,3668.2,3668.1,4.28181077]
[1736235599682,1.41828507,3668.2,3668.1,10.70513078]
[1736235599888,1.69085507,3668.2,3668.1,10.43255078]
[1736235600192,1.69085507,3668.2,3668.1,10.70513078]
[1736235600786,1.69085507,3668.2,3668.1,10.43255078]
[1736235602292,1.69085507,3668.2,3668.1,4.00923077]
[1736235602788,0.70947,3668.2,3668.1,4.00923077]
[1736235602994,0.4369,3668.2,3668.1,4.00923077]
[1736235603192,0.4369,3668.2,3668.1,4.28181077]
[1736235604090,3.63511026,3668.2,3667.8,5.26668836]
[1736235604288,3.63511026,3668.2,3668.0,0.27258]
[1736235604487,3.63511026,3668.2,3667.8,5.26668836]
[1736235604683,3.63511026,3668.2,3668.0,0.27258]
[1736235604887,0.98138507,3668.1,3668.0,0.27258]
[1736235605089,1.25396507,3668.1,3667.9,8.83700668]
[1736235605488,0.98138507,3668.1,3667.9,8.83700668]
[1736235606091,0.98138507,3668.1,3668.0,10.44217298]
[1736235606683,1.25396507,3668.1,3668.0,10.44217298]
[1736235607592,1.25396507,3668.1,3668.0,4.0128129]
[1736235608795,0.27258,3668.0,3667.9,4.28739267]
[1736235610084,0.98138507,3668.1,3667.9,10.44397712]
[1736235610395,0.27258,3668.0,3667.9,10.44397712]
[1736235611715,0.27258,3668.0,3667.9,4.01461704]
[1736235612110,0.98138507,3668.1,3667.9,4.01461704]
[1736235612330,3.63511026,3668.2,3668.1,0.27258]
[1736235612613,4.61649533,3668.2,3668.1,0.27258]
[1736235612910,1.41828507,3668.2,3668.1,0.27258]
[1736235613392,1.41828507,3668.2,3668.0,10.44397712]
[1736235613593,1.69085507,3668.2,3668.0,10.71655712]
[1736235614194,1.69085507,3668.2,3668.1,10.44397712]
[1736235615490,4.88906533,3668.2,3668.1,4.28914739]
[1736235619805,4.61649533,3668.2,3668.0,4.28914739]
[1736235619994,1.25396507,3668.1,3668.0,4.28914739]
[1736235620800,6.25396507,3668.1,3668.0,4.28914739]
[1736235621003,6.25396507,3668.1,3668.0,0.8281474]
[1736235621806,6.25396507,3668.1,3667.7,8.56442668]
[1736235621807,0.27259,3667.9,3667.8,0.8281474]
[1736235622007,1.25397507,3667.9,3667.8,0.8281474]
[1736235623113,0.98138507,3667.9,3667.7,6.42936008]
[1736235623308,2.44799477,3667.8,3667.7,6.42936008]
[1736235629821,0.2726,3667.8,3667.7,6.42936008]
[1736235630021,3.2078,3668.7,3667.7,6.42936008]
[1736235630323,0.27254,3668.6,3668.2,0.27257]
[1736235630526,0.27254,3668.6,3668.3,1.3241]
[1736235631318,0.27255,3668.5,3668.3,1.3241]
[1736235631529,5.60983202,3668.4,3668.3,1.3241]
[1736235632417,0.27255,3668.4,3668.3,1.3241]
[1736235635624,0.27259,3668.0,3667.8,9.63716008]
[1736235635826,0.27259,3668.0,3667.9,1.2978]
[1736235636325,2.17539477,3668.4,3667.9,1.2978]
[1736235636529,0.27258,3668.1,3667.9,1.2978]
[1736235637623,2.17539477,3668.4,3667.9,1.2978]
[1736235637824,0.27257,3668.2,3667.9,1.2978]
[1736235638428,2.17539477,3668.4,3667.9,1.57039]
[1736235639019,2.17539477,3668.4,3667.9,1.2978]
[1736235639222,0.27258,3668.1,3667.9,1.2978]
[1736235640124,0.27258,3668.1,3667.9,7.72716008]
[1736235643119,0.27258,3668.1,3667.9,7.99975008]
[1736235643325,0.27258,3668.1,3667.9,1.57039]
[1736235643532,2.17539477,3668.4,3667.9,1.2978]
[1736235643925,0.27258,3668.1,3667.9,1.2978]
[1736235646331,0.27258,3668.1,3667.9,7.72716008]
[1736235646529,2.17539477,3668.4,3667.9,7.72716008]
[1736235646833,0.27258,3668.1,3667.9,7.72716008]
[1736235647533,0.27258,3668.1,3667.9,7.99975008]
[1736235647940,0.27258,3668.1,3667.9,7.72716008]
[1736235650036,0.27258,3668.1,3667.9,7.99975008]
[1736235650432,0.27258,3668.1,3667.9,7.13715008]
[1736235650636,0.27258,3668.1,3667.9,6.86456008]
[1736235651137,0.27258,3668.1,3667.9,7.30886008]
[1736235651337,1.25386326,3668.1,3667.9,7.30886008]
[1736235651539,1.25386326,3668.1,3667.9,7.58145008]
[1736235653940,0.27258,3668.0,3667.9,0.8795]
[1736235654142,1.25386326,3668.1,3667.9,0.8795]
[1736235654636,0.27258,3668.0,3667.9,0.8795]
[1736235655043,0.27258,3668.0,3667.9,0.4352]
[1736235655342,0.27259,3667.9,3667.8,6.42936008]
[1736235655541,1.67137326,3667.9,3667.8,6.42936008]
[1736235656335,0.2726,3667.7,3667.6,0.4303]
[1736235656735,1.25388326,3667.7,3667.6,0.4303]
[1736235657345,0.27261,3667.6,3667.5,6.86586008]
[1736235657840,0.27261,3667.6,3667.5,0.4365]
[1736235658446,0.98128326,3667.7,3667.4,10.06746008]
[1736235658447,0.27262,3667.5,3667.4,10.06746008]
[1736235658740,1.69270326,3667.5,3667.4,10.06746008]
[1736235659139,1.69270326,3667.5,3667.4,7.56202367]
[1736235659344,2.88685698,3667.5,3667.4,7.13172367]
[1736235660740,2.88685698,3667.5,3667.4,3.2078]
[1736235668450,2.1357915,3667.8,3667.4,3.2078]
[1736235668651,2.1357915,3667.8,3667.7,0.2726]
[1736235669649,2.44801698,3668.0,3667.7,0.2726]
[1736235669849,2.17543698,3668.0,3667.6,0.4503]
[1736235670054,0.27259,3667.9,3667.6,0.72291]
[1736235670356,0.2726,3667.8,3667.6,0.72291]
[1736235670650,2.17543698,3668.0,3667.6,0.4503]
[1736235670852,0.2726,3667.7,3667.6,0.4503]
[1736235671057,2.44803698,3667.7,3667.5,0.4307]
[1736235672251,0.27261,3667.6,3667.5,0.4307]
[1736235672849,1.18461,3667.6,3667.5,0.4307]
[1736235674544,0.912,3667.6,3667.2,9.63716008]
[1736235674851,0.27263,3667.3,3667.2,9.63716008]
[1736235675554,0.27263,3667.3,3667.2,6.42936008]
[1736235676553,0.27263,3667.3,3667.1,0.4613]
[1736235677560,0.27264,3667.2,3667.1,0.4613]
[1736235679256,1.25443724,3667.2,3667.1,0.4613]
[1736235680855,0.27266,3667.0,3666.8,6.42936008]
[1736235681154,1.25445724,3666.9,3666.8,6.84916008]
[1736235681361,0.98179724,3666.9,3666.8,6.84916008]
[1736235681558,0.98179724,3666.9,3666.8,0.4198]
[1736235681956,1.25445724,3666.9,3666.8,0.4198]
[1736235687458,0.98179724,3666.9,3666.8,0.4198]
[1736235688261,1.25445724,3666.9,3666.8,0.4198]
[1736235694064,0.27266,3666.9,3666.8,0.4198]
[1736235694266,1.25445724,3666.9,3666.8,0.4198]
[1736235704079,0.27266,3666.9,3666.8,0.4198]
[1736235704279,1.25445724,3666.9,3666.8,0.4198]
[1736235711080,0.27268,3666.7,3666.6,6.42936008]
[1736235711381,1.25447724,3666.7,3666.6,6.42936008]
[1736235712184,1.25447724,3666.7,3666.6,10.35541856]
[1736235714284,1.25447724,3666.7,3666.6,10.80361856]
[1736235717984,1.25447724,3666.7,3666.6,10.35541856]
[1736235719279,1.25447724,3666.7,3666.6,3.92605848]
[1736235722181,1.25447724,3666.7,3666.6,10.36286455]
[1736235722182,3.11758874,3666.7,3666.6,10.36286455]
[1736235723591,2.1357915,3666.7,3666.6,10.63555455]
[1736235725479,4.18511607,3666.8,3666.7,0.27268]
[1736235725480,3.11758874,3666.8,3666.7,0.27268]
[1736235726495,2.1357915,3666.8,3666.7,0.27268]
[1736235727093,2.1357915,3666.8,3666.7,4.19873848]
[1736235727689,3.11758874,3666.8,3666.7,4.19873848]
[1736235728798,3.11758874,3666.8,3666.7,12.76316516]
[1736235729096,3.11758874,3666.8,3666.7,12.49048516]
[1736235730092,3.11758874,3666.8,3666.7,12.76316516]
[1736235730093,0.98179724,3666.8,3666.7,12.76316516]
[1736235730393,3.47597883,3666.9,3666.7,12.76316516]
[1736235730600,3.47597883,3666.9,3666.8,0.4286]
[1736235731497,3.47597883,3666.9,3666.8,4.35465848]
[1736235735901,0.68178728,3666.9,3666.8,10.79542557]
[1736235737309,0.27266,3666.9,3666.8,4.35465848]
[1736235738101,0.98179724,3667.0,3666.8,4.35465848]
[1736235738304,1.25445724,3667.0,3666.8,4.35465848]
[1736235738496,1.25445724,3667.0,3666.9,0.4495]
[1736235740207,1.66357641,3667.0,3666.9,10.81625715]
[1736235740503,1.66357641,3667.0,3666.9,10.36675715]
[1736235741202,10.95994884,3667.0,3666.8,4.29417444]
[1736235741403,1.71355724,3666.9,3666.8,4.29417444]
[1736235742708,0.27268,3666.7,3666.6,4.29417444]
[1736235742906,1.25447724,3666.7,3666.6,4.29417444]
[1736235743509,1.66359641,3666.7,3666.6,4.29417444]
[1736235743696,1.39091641,3666.7,3666.6,4.29417444]
[1736235744103,0.40911917,3666.7,3666.6,5.46636444]
[1736235744812,3.61773351,3666.7,3666.6,5.10418797]
[1736235746011,5.33728202,3667.1,3666.7,0.27267]
[1736235746012,2.41202145,3667.0,3666.7,0.27267]
[1736235746304,0.98179724,3666.9,3666.7,0.27267]
[1736235747111,0.98179724,3666.9,3666.8,12.51483846]
[1736235747512,1.25445724,3666.9,3666.8,12.51483846]
[1736235748212,1.25445724,3666.9,3666.8,3.93199797]
[1736235750918,3.39381869,3666.9,3666.8,10.36897636]
[1736235751318,2.41202145,3666.9,3666.8,10.36897636]
[1736235751613,3.39381869,3666.9,3666.8,10.36897636]
[1736235752413,1.25445724,3666.9,3666.8,3.93199797]
[1736235754718,1.39094109,3666.9,3666.7,4.2916508]
[1736235754919,0.27267,3666.8,3666.7,4.2916508]
[1736235755820,3.88760191,3666.8,3666.7,4.2916508]
[1736235758623,0.27268,3666.7,3666.6,4.2916508]
[1736235758920,1.69207724,3666.7,3666.6,4.2916508]
[1736235760024,0.2727,3666.4,3666.3,4.2916508]
[1736235760222,1.25449724,3666.4,3666.3,4.2916508]
[1736235761124,3.39016016,3666.4,3666.3,4.2916508]
[1736235763322,2.40836292,3666.4,3666.3,4.2916508]
[1736235763523,2.40836292,3666.4,3666.3,4.7338508]
[1736235764729,0.2727,3666.4,3666.3,4.7338508]
[1736235766030,0.2727,3666.4,3666.3,0.4422]
[1736235767430,0.2727,3666.4,3666.3,4.7338508]
[1736235768831,0.2727,3666.4,3666.3,4.2916508]
[1736235770127,3.54486016,3666.5,3666.2,4.7437508]
[1736235770325,1.70310724,3666.3,3666.2,4.7437508]
[1736235771535,1.70310724,3666.3,3666.2,4.2916508]
[1736235775436,1.25450724,3666.3,3666.2,4.2916508]
[1736235775938,1.25450724,3666.3,3666.2,4.7451508]
[1736235781940,1.25450724,3666.3,3666.2,0.4535]
[1736235784641,0.98179724,3666.3,3666.2,0.4535]
[1736235784942,1.25450724,3666.3,3666.2,0.4535]
[1736235786132,1.25450724,3666.3,3666.2,4.7451508]
[1736235788740,1.25450724,3666.3,3666.2,0.4535]
[1736235792244,0.98179724,3666.3,3666.2,0.4535]
[1736235792548,1.25450724,3666.3,3666.2,0.4535]
[1736235793146,0.98179724,3666.3,3666.2,4.7451508]
[1736235794049,1.25450724,3666.3,3666.2,4.7451508]
[1736235794543,1.25450724,3666.3,3666.2,4.38188701]
[1736235795744,0.98179724,3666.3,3666.2,4.38188701]
[1736235796242,2.13566292,3666.4,3666.3,0.27271]
[1736235796449,2.13566292,3666.4,3666.3,1.25450724]
[1736235796746,2.13566292,3666.4,3666.2,4.65459701]
[1736235797053,0.98179724,3666.5,3666.3,3.92838701]
[1736235797054,1.25449724,3666.5,3666.3,3.92838701]
[1736235797250,1.25449724,3666.5,3666.3,4.20109701]
[1736235797449,0.98179724,3666.5,3666.4,0.4297]
[1736235798653,0.98179724,3666.5,3666.4,12.9409275]
[1736235799351,1.25448724,3666.5,3666.4,12.9409275]
[1736235801453,1.25448724,3666.5,3666.4,4.35808701]
[1736235801644,1.25448724,3666.5,3666.4,3.92838701]
[1736235801850,1.67118724,3666.5,3666.4,3.92838701]
[1736235802751,3.80685016,3666.5,3666.4,10.36539449]
[1736235807661,3.53416016,3666.5,3666.4,10.36539449]
[1736235807957,3.53416016,3666.5,3666.4,10.63809449]
[1736235808757,3.80685016,3666.5,3666.4,10.36539449]
[1736235809152,1.67118724,3666.5,3666.4,3.92838701]
[1736235810860,1.39849724,3666.5,3666.4,3.92838701]
[1736235811949,3.53416016,3666.5,3666.4,10.36467471]
[1736235812349,3.53416016,3666.5,3666.4,10.63737471]
[1736235814862,1.39849724,3666.5,3666.4,10.63737471]
[1736235819055,1.39849724,3666.5,3666.4,4.20108701]
[1736235819458,2.13566292,3666.6,3666.5,0.27269]
[1736235819661,0.03566292,3666.6,3666.5,0.27269]
[1736235819856,0.03566292,3666.6,3666.5,0.72979]
[1736235820359,3.20349438,3666.9,3666.5,0.4571]
[1736235820657,3.20349438,3666.9,3666.8,0.27267]
[1736235822161,4.18959724,3667.0,3666.9,0.27266]
[1736235822662,4.18959724,3667.0,3666.9,0.72346]
[1736235822855,4.18959724,3667.0,3666.8,10.36276669]
[1736235823057,0.4509,3666.9,3666.8,10.36276669]
[1736235823255,0.72356,3666.9,3666.8,10.36276669]
[1736235823455,0.4509,3666.9,3666.7,6.43437968]
[1736235823651,1.25446724,3666.8,3666.7,6.43437968]
[1736235824665,0.27268,3666.7,3666.4,5.01290934]
[1736235824864,0.98179724,3666.5,3666.4,5.01290934]
[1736235825365,0.98179724,3666.5,3666.4,4.74020934]
[1736235825760,0.4233,3666.7,3666.4,4.74020934]
[1736235825956,1.40509724,3666.7,3666.4,4.43258576]
[1736235826160,0.98179724,3666.7,3666.6,0.27269]
[1736235827154,3.2044866,3666.8,3666.4,11.84876268]
[1736235827362,4.18628384,3666.9,3666.8,0.27267]
[1736235828966,4.18628384,3666.9,3666.8,4.28908367]
[1736235829265,0.98179724,3666.9,3666.8,4.28908367]
[1736235829460,0.98179724,3666.9,3666.8,4.56175367]
[1736235830362,0.98179724,3666.9,3666.8,0.27267]
[1736235830764,0.98179724,3666.9,3666.8,1.12207]
[1736235831773,0.98179724,3666.9,3666.8,1.56957]
[1736235831980,0.98179724,3666.9,3666.8,4.56175367]
[1736235832475,3.2044866,3667.0,3666.8,4.28908367]
[1736235832675,3.2044866,3667.0,3666.9,0.69406]
[1736235832875,3.2044866,3667.0,3666.9,1.12606]
[1736235833682,3.2078,3667.2,3667.1,0.27265]
[1736235833879,4.18628384,3667.3,3667.2,0.27264]
[1736235835177,0.98179724,3667.3,3667.2,10.68814103]
[1736235835572,0.98179724,3667.5,3667.2,10.41550103]
[1736235835778,1.25442724,3667.3,3667.2,10.41550103]
[1736235836383,0.73073,3667.3,3667.2,10.41550103]
[1736235836580,0.27264,3667.2,3667.1,6.43437968]
[1736235836785,1.25443724,3667.2,3667.1,6.43437968]
[1736235837778,0.27265,3667.1,3667.0,4.28733242]
[1736235837981,1.69504724,3667.1,3667.0,4.28733242]
[1736235839184,0.27266,3667.0,3666.9,4.28733242]
[1736235839384,1.25445724,3667.0,3666.9,4.28733242]
[1736235840278,0.27268,3666.8,3666.6,4.28733242]
[1736235840484,0.4447,3666.7,3666.6,4.28733242]
[1736235840691,0.8853,3666.7,3666.6,4.28733242]
[1736235841087,1.15798,3666.7,3666.6,4.28733242]
[1736235842587,1.15798,3666.7,3666.5,4.72593242]
[1736235842887,0.98179724,3666.6,3666.5,4.72593242]
[1736235843886,0.98179724,3666.6,3666.5,4.41884056]
[1736235844891,1.25448724,3666.6,3666.5,10.85322024]
[1736235846286,1.25448724,3666.6,3666.5,4.41884056]
[1736235846493,0.98179724,3666.6,3666.5,4.41884056]
[1736235848992,0.98179724,3666.6,3666.5,10.85322024]
[1736235849602,1.25448724,3666.6,3666.5,10.85322024]
[1736235852391,0.4447,3666.7,3666.5,11.83501748]
[1736235852590,0.71738,3666.7,3666.6,0.4294]
[1736235853599,0.71738,3666.7,3666.6,4.40964056]
[1736235857814,0.71738,3666.7,3666.6,4.71818596]
[1736235859300,0.71738,3666.7,3666.6,0.4294]
[1736235860801,0.71738,3666.7,3666.6,4.41007276]
[1736235864908,0.71738,3666.7,3666.6,4.71859689]
[1736235866608,0.71738,3666.7,3666.6,4.28919689]
[1736235867812,0.27269,3666.6,3666.5,4.72779689]
[1736235868007,1.25448724,3666.6,3666.5,4.72779689]
[1736235869004,1.70048724,3666.6,3666.5,4.72779689]
[1736235870612,1.70048724,3666.6,3666.5,0.4386]
[1736235873306,1.70048724,3666.6,3666.4,4.28919689]
[1736235873307,1.42779724,3666.6,3666.4,4.28919689]
[1736235873606,0.27269,3666.5,3666.4,4.28919689]
[1736235874915,0.2727,3666.4,3666.3,4.72789689]
[1736235875117,1.25449724,3666.4,3666.3,4.72789689]
[1736235877422,1.25449724,3666.4,3666.3,4.28919689]
[1736235878817,0.98179724,3666.4,3666.2,4.28919689]
[1736235879022,0.27271,3666.3,3666.2,4.28919689]
[1736235879912,0.98179724,3666.4,3666.1,4.28919689]
[1736235880123,1.25451724,3666.2,3666.1,4.28919689]
[1736235882418,1.25451724,3666.2,3666.1,3.98146601]
[1736235884716,1.25451724,3666.2,3666.1,10.41584569]
[1736235886218,1.25451724,3666.2,3666.1,3.98146601]
[1736235889121,1.25451724,3666.2,3666.1,10.41584569]
[1736235890318,1.25451724,3666.2,3666.1,3.98146601]
[1736235894322,0.27272,3666.2,3666.1,3.98146601]
[1736235896133,0.27271,3666.4,3666.2,0.27272]
[1736235896434,4.18590003,3666.5,3666.3,0.4425]
[1736235896625,4.45860003,3666.5,3666.4,0.4506]
[1736235896932,4.45860003,3666.5,3666.4,0.9081]
[1736235898230,1.25449724,3666.5,3666.4,0.9081]
[1736235900430,3.20410279,3666.6,3666.4,0.9081]
[1736235900632,4.45859003,3666.6,3666.4,0.9081]
[1736235900836,0.27269,3666.5,3666.4,0.9081]
[1736235902133,0.27269,3666.5,3666.4,5.19730519]
[1736235907738,3.47679279,3666.5,3666.4,5.19730519]
[1736235908435,3.20410279,3666.5,3666.4,5.19730519]
[1736235908936,3.47679279,3666.5,3666.4,5.19730519]
[1736235910133,3.47679279,3666.5,3666.4,11.32572656]
[1736235910134,0.27269,3666.5,3666.4,11.32572656]
[1736235914336,0.27269,3666.5,3666.4,10.41762656]
[1736235915842,4.18590003,3666.6,3666.4,10.41762656]
[1736235916041,0.27269,3666.5,3666.4,10.41762656]
[1736235919746,3.47679279,3666.5,3666.4,10.41762656]
[1736235924352,3.20410279,3666.5,3666.4,10.41762656]
[1736235924746,3.47679279,3666.5,3666.4,10.41762656]
[1736235925250,0.27269,3666.5,3666.4,10.41762656]
[1736235925450,4.18590003,3666.6,3666.4,10.41762656]
[1736235925647,4.45859003,3666.6,3666.4,10.41762656]
[1736235925844,4.18590003,3666.6,3666.4,10.41762656]
[1736235926153,0.27269,3666.5,3666.4,10.41762656]
[1736235927042,0.2727,3666.4,3666.3,6.85897968]
[1736235927242,1.69009724,3666.4,3666.3,6.85897968]
[1736235928852,2.09928229,3666.4,3666.3,4.71731181]
[1736235934351,2.09928229,3666.4,3666.3,4.29271181]
[1736235935450,0.27271,3666.3,3666.2,4.29271181]
[1736235936059,3.48051,3666.3,3666.2,4.29271181]
[1736235936259,4.46230724,3666.3,3666.2,4.29271181]
[1736235936850,4.87149229,3666.3,3666.2,4.29271181]
[1736235938251,0.27273,3666.0,3665.9,4.29271181]
[1736235938456,1.25452724,3666.0,3665.9,4.29271181]
[1736235940057,1.70922724,3666.0,3665.9,4.29271181]
[1736235942559,3.84549612,3666.0,3665.9,4.29271181]
[1736235943962,3.84549612,3666.0,3665.8,4.29271181]
[1736235944261,1.25453724,3665.9,3665.8,4.29271181]
[1736235950466,0.98179724,3665.9,3665.8,4.29271181]
[1736235950660,1.25453724,3665.9,3665.8,4.74311181]
[1736235951163,2.13626888,3666.0,3665.8,5.72490905]
[1736235951465,2.13626888,3666.0,3665.9,0.4489]
[1736235952053,2.13626888,3666.0,3665.9,0.72164]
[1736235952766,3.39078612,3666.2,3665.9,4.70130826]
[1736235953768,3.39078612,3666.2,3665.9,4.42856826]
[1736235954267,3.39078612,3666.2,3665.9,4.70130826]
[1736235954566,1.25451724,3666.2,3666.1,4.28784736]
[1736235954959,1.25451724,3666.2,3666.1,4.70444736]
[1736235963275,3.39078612,3666.2,3666.1,4.70444736]
[1736235967770,3.11806612,3666.2,3666.1,4.70444736]
[1736235967972,3.39078612,3666.2,3666.1,4.70444736]
[1736235968567,2.13626888,3666.2,3666.1,4.70444736]
[1736235968872,2.13626888,3666.2,3666.1,4.97716736]
[1736235970678,2.40896888,3666.5,3666.2,0.27271]
[1736235970878,2.40896888,3666.5,3666.3,0.4296]
[1736235971070,2.40896888,3666.5,3666.4,0.4332]
[1736235973075,2.40896888,3666.5,3666.4,4.4149582]
[1736235974674,2.40896888,3666.5,3666.4,4.72268968]
[1736235975378,2.13626888,3666.5,3666.4,4.72268968]
[1736235975972,3.39075612,3666.6,3666.4,4.72268968]
[1736235976473,3.39075612,3666.6,3666.5,0.4553]
[1736235977176,3.11806612,3666.6,3666.5,0.4553]
[1736235978980,3.11806612,3666.6,3666.5,4.74478968]
[1736235978981,0.98179724,3666.6,3666.5,4.74478968]
[1736235980482,0.98179724,3666.6,3666.5,5.01747968]
[1736235980883,2.13626888,3666.8,3666.7,0.27268]
[1736235981184,2.13626888,3666.8,3666.7,1.25447724]
[1736235982081,3.83141612,3667.1,3666.9,0.27266]
[1736235982381,3.83141612,3667.1,3667.0,0.8764]
[1736235983081,3.55876612,3667.1,3666.8,0.27267]
[1736235983278,0.27266,3667.0,3666.9,0.4255]
[1736235984779,0.4407,3667.1,3666.9,0.4255]
[1736235984979,0.98179724,3667.0,3666.9,0.4255]
[1736235985685,1.25445724,3667.0,3666.9,0.4255]
[1736235988188,0.98179724,3667.0,3666.9,0.4255]
[1736235989189,0.98179724,3667.0,3666.8,0.27267]
[1736235989489,0.98179724,3667.0,3666.8,0.73017]
[1736235990391,0.98179724,3667.0,3666.9,0.27266]
[1736235993792,1.25445724,3667.0,3666.8,0.73017]
[1736235994693,1.25445724,3667.0,3666.8,0.4575]
[1736235994893,0.98179724,3667.0,3666.9,0.27266]
[1736235996295,0.27266,3666.9,3666.8,0.4575]
[1736235997593,1.25445724,3667.0,3666.8,0.73017]
[1736235998800,0.98179724,3667.0,3666.8,0.73017]
[1736235999294,1.25445724,3667.0,3666.8,0.73017]
[1736236002801,0.70466,3666.9,3666.8,0.73017]
[1736236006800,0.432,3666.9,3666.8,0.73017]
[1736236008597,0.432,3666.9,3666.8,5.01502089]
[1736236011207,0.70466,3666.9,3666.8,5.01502089]
[1736236011508,0.432,3666.9,3666.8,5.01502089]
[1736236012409,0.70466,3666.9,3666.8,5.01502089]
[1736236012803,0.432,3666.9,3666.8,5.01502089]
[1736236013308,0.70466,3666.9,3666.8,4.28485089]
[1736236013610,0.70466,3666.9,3666.8,4.55752089]
[1736236013611,0.432,3666.9,3666.8,4.55752089]
[1736236013908,0.432,3666.9,3666.8,4.25076469]
[1736236014509,0.70466,3666.9,3666.8,4.25076469]
[1736236014709,0.432,3666.9,3666.8,4.25076469]
[1736236015309,0.432,3666.9,3666.8,10.68589314]
[1736236015817,0.70466,3666.9,3666.8,10.41322314]
[1736236016017,0.432,3666.9,3666.8,10.68589314]
[1736236019619,0.432,3666.9,3666.8,10.41322314]
[1736236019810,0.432,3666.9,3666.8,10.68589314]
[1736236020617,0.70466,3666.9,3666.8,10.41322314]
[1736236022022,2.84092888,3666.9,3666.8,3.97809469]
[1736236023113,0.70466,3666.9,3666.8,10.41322314]
[1736236023723,0.432,3666.9,3666.8,10.41322314]
[1736236026223,3.63724159,3666.9,3666.8,3.97809469]
[1736236027523,4.04634398,3666.9,3666.8,3.97809469]
[1736236027723,4.04634398,3666.9,3666.8,4.39949469]
[1736236027925,4.04634398,3666.9,3666.8,4.67216469]
[1736236028623,3.61434398,3666.9,3666.8,4.67216469]
[1736236028816,3.20524159,3666.9,3666.8,4.67216469]
[1736236029321,3.20524159,3666.9,3666.8,5.12756469]
[1736236030522,4.18703883,3667.0,3666.9,0.27266]
[1736236030722,4.18703883,3667.0,3666.9,0.70256]
[1736236031918,4.59613708,3667.0,3666.9,4.68065469]
[1736236032517,4.59613708,3667.0,3666.9,4.40799469]
[1736236034617,4.86879708,3667.0,3666.9,4.40799469]
[1736236034817,4.59613708,3667.0,3666.9,4.40799469]
[1736236035223,4.86879708,3667.0,3666.9,4.40799469]
[1736236035823,4.59613708,3667.0,3666.9,4.40799469]
[1736236036714,4.86879708,3667.0,3666.9,4.40799469]
[1736236039629,4.59613708,3667.0,3666.9,4.40799469]
[1736236039821,4.59613708,3667.0,3666.9,4.68065469]
[1736236041226,3.61433984,3667.0,3666.9,4.68065469]
[1736236042029,3.20524159,3667.0,3666.9,4.68065469]
[1736236042626,3.20524159,3667.0,3666.9,4.40799469]
[1736236043028,4.45969883,3667.0,3666.9,4.40799469]
[1736236043426,4.86879708,3667.0,3666.9,3.97809469]
[1736236043831,4.86879708,3667.0,3666.9,4.40569469]
[1736236050230,4.45969883,3667.0,3666.9,4.40569469]
[1736236056436,1.25445724,3667.0,3666.9,3.97809469]
[1736236056839,1.68445724,3667.0,3666.9,3.97809469]
[1736236057038,2.11885724,3667.0,3666.9,3.97809469]
[1736236057638,6.8016536,3667.0,3666.9,4.29414]
[1736236059143,0.27267,3666.8,3666.7,4.29414]
[1736236059443,1.25446724,3666.8,3666.7,4.29414]
[1736236060444,1.66360814,3666.8,3666.7,4.29414]
[1736236064246,0.27268,3666.7,3666.6,7.50194]
[1736236064653,0.27268,3666.7,3666.6,4.29414]
[1736236065649,3.47587689,3666.7,3666.6,4.29414]
[1736236069950,0.98179724,3666.8,3666.5,4.29414]
[1736236069951,0.27269,3666.6,3666.5,4.29414]
[1736236070143,1.25448724,3666.6,3666.5,4.29414]
[1736236070953,3.38923346,3666.6,3666.5,4.29414]
[1736236073548,1.25448724,3666.6,3666.5,3.98107649]
[1736236074049,1.25448724,3666.6,3666.5,4.42577649]
[1736236079653,1.25448724,3666.6,3666.5,4.73379822]
[1736236087867,4.46228724,3666.6,3666.5,4.73379822]
[1736236088365,4.46228724,3666.6,3666.5,0.4447]
[1736236089860,3.2078,3666.6,3666.5,0.4447]
[1736236090059,4.18959724,3666.6,3666.5,0.71739]
[1736236090771,0.98179724,3666.6,3666.5,0.71739]
[1736236091163,0.98179724,3666.6,3666.5,0.4447]
[1736236091567,0.98179724,3666.6,3666.5,10.86660852]
[1736236093069,0.98179724,3666.6,3666.5,4.73389425]
[1736236093070,3.11484387,3666.6,3666.5,4.73389425]
[1736236094069,3.38753387,3666.6,3666.5,4.73389425]
[1736236096973,3.11484387,3666.6,3666.5,4.73389425]
[1736236097167,1.25448724,3666.6,3666.5,0.4447]
[1736236097972,1.25448724,3666.6,3666.5,4.42689955]
[1736236099170,3.38839015,3666.6,3666.5,10.86810955]
[1736236099365,3.11570015,3666.6,3666.5,10.86810955]
[1736236099971,3.11570015,3666.6,3666.5,11.14079955]
[1736236100775,3.11570015,3666.6,3666.5,10.86810955]
[1736236101973,4.18499413,3666.6,3666.5,4.42689955]
[1736236102875,4.45768413,3666.6,3666.5,4.42689955]
[1736236103072,4.18499413,3666.6,3666.5,4.42689955]
[1736236103472,4.18499413,3666.6,3666.5,10.86810955]
[1736236104075,4.45768413,3666.6,3666.5,10.86810955]
[1736236104280,4.88358413,3666.6,3666.5,10.86810955]
[1736236104481,4.61089413,3666.6,3666.5,10.86810955]
[1736236104684,1.40769724,3666.6,3666.5,4.42689955]
[1736236107283,0.98179724,3666.6,3666.5,4.42689955]
[1736236107784,0.98179724,3666.6,3666.5,4.69958955]
[1736236108271,3.20319689,3666.7,3666.5,4.69958955]
[1736236108476,4.18499413,3666.7,3666.6,1.15099]
[1736236109081,4.18499413,3666.7,3666.6,4.35879]
[1736236109987,3.11706061,3666.7,3666.6,24.89384939]
[1736236111384,0.98179724,3666.7,3666.6,16.3110089]
[1736236112587,0.98179724,3666.7,3666.6,13.1032089]
[1736236113285,0.98179724,3666.7,3666.6,12.3707189]
[1736236113489,1.25447724,3666.7,3666.6,12.3707189]
[1736236114086,1.25447724,3666.7,3666.6,12.56539673]
[1736236115286,3.38974061,3666.7,3666.6,10.41983519]
[1736236122395,3.11706061,3666.7,3666.6,10.41983519]
[1736236122695,3.11706061,3666.7,3666.6,10.69252519]
[1736236127512,0.98179724,3666.7,3666.6,4.25488955]
[1736236130302,3.11706061,3666.7,3666.6,10.69189585]
[1736236131511,3.11706061,3666.7,3666.6,4.25488955]
[1736236134517,0.98179724,3666.7,3666.6,4.25488955]
[1736236136914,2.13526337,3666.8,3666.7,0.27268]
[1736236137111,3.11706061,3666.8,3666.7,0.27268]
[1736236138021,3.11706061,3666.8,3666.7,4.25487955]
[1736236139522,0.98179724,3666.8,3666.7,12.83807673]
[1736236142021,0.98179724,3666.8,3666.7,4.25487955]
[1736236142318,2.13526337,3666.9,3666.8,0.27267]
[1736236142522,2.13526337,3666.9,3666.8,0.70967]
[1736236143415,0.98179724,3667.1,3666.8,12.38380548]
[1736236143721,0.98179724,3667.1,3667.0,3.48046]